fUST/lending_fUST_20240605
["ID","MTS","AMOUNT","RATE_DAILY","PERIOD"]
[328593253,1717585846035,-151.0,0.00019178,2]
[328593254,1717585846044,-151.0,0.00019178,2]
[328593255,1717585846054,-151.0,0.00019178,2]
[328593256,1717585846064,-151.0,0.00019178,2]
[328593257,1717585846074,-151.0,0.00019178,2]
[328593258,1717585846083,-151.0,0.00019178,2]
[328593259,1717585846093,-165.572357,0.00019178,2]
[328593260,1717585846102,-151.0,0.00019178,2]
[328593261,1717585846112,-151.0,0.00019178,2]
[328593262,1717585846121,-151.0,0.00019178,2]
[328593263,1717585846130,-151.0,0.00019178,2]
[328593264,1717585846139,-151.0,0.00019178,2]
[328593265,1717585846149,-151.0,0.00019178,2]
[328593266,1717585846159,-151.0,0.00019178,2]
[328593267,1717585846168,-151.0,0.00019178,2]
[328593268,1717585846177,-221.043055,0.00019178,2]
[328593269,1717585846187,-151.0,0.00019178,2]
[328593270,1717585846196,-151.0,0.00019178,2]
[328593271,1717585846205,-151.0,0.00019178,2]
[328593272,1717585846215,-151.0,0.00019178,2]
[328593273,1717585846224,-151.0,0.00019178,2]
[328593274,1717585846234,-151.0,0.00019178,2]
[328593275,1717585846244,-151.0,0.00019178,2]
[328593276,1717585846255,-151.0,0.00019178,2]
[328593277,1717585846264,-151.0,0.00019178,2]
[328593278,1717585846274,-151.0,0.00019178,2]
[328593279,1717585846283,-151.0,0.00019178,2]
[328593280,1717585846292,-151.0,0.00019178,2]
[328593281,1717585846302,-151.0,0.00019178,2]
[328593282,1717585846311,-151.0,0.00019178,2]
[328593283,1717585846321,-151.0,0.00019178,2]
[328593284,1717585846330,-151.0,0.00019178,2]
[328593285,1717585846340,-151.0,0.00019178,2]
[328593286,1717585846349,-151.0,0.00019178,2]
[328593287,1717585846359,-195.809324,0.00019178,2]
[328593288,1717585846368,-151.0,0.00019178,2]
[328593289,1717585846377,-1063.337495,0.00019178,2]
[328593290,1717585846387,-1063.337495,0.00019178,2]
[328593291,1717585846396,-1063.337495,0.00019178,2]
[328593292,1717585846406,-1063.337495,0.00019178,2]
[328593293,1717585846416,-1063.337495,0.00019178,2]
[328593294,1717585846425,-1063.337495,0.00019178,2]
[328593295,1717585846435,-1063.337495,0.00019178,2]
[328593296,1717585846444,-1063.337495,0.00019178,2]
[328593297,1717585846454,-1063.337495,0.00019178,2]
[328593298,1717585846464,-1063.337495,0.00019178,2]
[328593299,1717585846473,-1063.337495,0.00019178,2]
[328593300,1717585846483,-1063.337495,0.00019178,2]
[328593301,1717585846493,-1063.337495,0.00019178,2]
[328593304,1717585846503,-1063.337495,0.00019178,2]
[328593306,1717585846516,-1063.337495,0.00019178,2]
[328593308,1717585846525,-1063.337495,0.00019178,2]
[328593310,1717585846535,-1063.337495,0.00019178,2]
[328593312,1717585846544,-1063.337495,0.00019178,2]
[328593314,1717585846555,-1063.337495,0.00019178,2]
[328593316,1717585846566,-1063.33749487,0.00019178,2]
[328593318,1717585846575,-151.0,0.00019178,2]
[328593320,1717585846585,-151.0,0.00019178,2]
[328593322,1717585846595,-467.090112,0.00019178,2]
[328593323,1717585846604,-467.090112,0.00019178,2]
[328593325,1717585846613,-467.090112,0.00019178,2]
[328593326,1717585846622,-467.090112,0.00019178,2]
[328593327,1717585846631,-467.090112,0.00019178,2]
[328593328,1717585846641,-467.090112,0.00019178,2]
[328593329,1717585846650,-467.090112,0.00019178,2]
[328593330,1717585846660,-467.090112,0.00019178,2]
[328593331,1717585846669,-467.090112,0.00019178,2]
[328593332,1717585846679,-467.090112,0.00019178,2]
[328593334,1717585846688,-467.090112,0.00019178,2]
[328593336,1717585846697,-467.090112,0.00019178,2]
[328593338,1717585846706,-467.090112,0.00019178,2]
[328593339,1717585846715,-467.090112,0.00019178,2]
[328593340,1717585846725,-467.090112,0.00019178,2]
[328593341,1717585846734,-467.090112,0.00019178,2]
[328593342,1717585846744,-467.090112,0.00019178,2]
[328593343,1717585846755,-467.090112,0.00019178,2]
[328593344,1717585846765,-467.090112,0.00019178,2]
[328593345,1717585846774,-467.090119,0.00019178,2]
[328593346,1717585846784,-325.025544,0.00019178,2]
[328593347,1717585846794,-325.025544,0.00019178,2]
[328593348,1717585846803,-325.025544,0.00019178,2]
[328593349,1717585846812,-325.025544,0.00019178,2]
[328593350,1717585846822,-325.025544,0.00019178,2]
[328593351,1717585846831,-325.025544,0.00019178,2]
[328593352,1717585846840,-325.025544,0.00019178,2]
[328593353,1717585846849,-325.025544,0.00019178,2]
[328593355,1717585846858,-325.025544,0.00019178,2]
[328593357,1717585846868,-325.025544,0.00019178,2]
[328593359,1717585846877,-325.025544,0.00019178,2]
[328593361,1717585846887,-325.025544,0.00019178,2]
[328593367,1717585847011,-325.025544,0.00019178,2]
[328593368,1717585847021,-325.025544,0.00019178,2]
[328593370,1717585847030,-325.025544,0.00019178,2]
[328593371,1717585847039,-325.025544,0.00019178,2]
[328593372,1717585847049,-325.025544,0.00019178,2]
[328593373,1717585847058,-325.025544,0.00019178,2]
[328593374,1717585847067,-280.18282,0.00019178,2]
[328593375,1717585847076,-325.025544,0.00019178,2]
[328593376,1717585847085,-280.18282,0.00019178,2]
[328593377,1717585847095,-325.025547,0.00019178,2]
[328593378,1717585847103,-280.18282,0.00019178,2]
[328593379,1717585847112,-280.18282,0.00019178,2]
[328593380,1717585847122,-280.18282,0.00019178,2]
[328593381,1717585847131,-280.18282,0.00019178,2]
[328593382,1717585847140,-280.18282,0.00019178,2]
[328593383,1717585847150,-280.18282,0.00019178,2]
[328593384,1717585847159,-280.18282,0.00019178,2]
[328593385,1717585847168,-280.18282,0.00019178,2]
[328593386,1717585847178,-280.18282,0.00019178,2]
[328593387,1717585847187,-280.18282,0.00019178,2]
[328593388,1717585847196,-280.18282,0.00019178,2]
[328593389,1717585847205,-280.18282,0.00019178,2]
[328593390,1717585847215,-280.18282,0.00019178,2]
[328593391,1717585847224,-280.18282,0.00019178,2]
[328593392,1717585847234,-280.18282,0.00019178,2]
[328593393,1717585847243,-280.18282,0.00019178,2]
[328593394,1717585847254,-280.18282,0.00019178,2]
[328593395,1717585847263,-280.182819,0.00019178,2]
[328593396,1717585847272,-151.0,0.00019178,2]
[328593397,1717585847281,-151.0,0.00019178,2]
[328593398,1717585847291,-151.0,0.00019178,2]
[328593399,1717585847299,-151.0,0.00019178,2]
[328593400,1717585847309,-151.0,0.00019178,2]
[328593401,1717585847318,-151.0,0.00019178,2]
[328593402,1717585847328,-151.0,0.00019178,2]
[328593403,1717585847337,-151.0,0.00019178,2]
[328593404,1717585847347,-218.964583,0.00019178,2]
[328593405,1717585847356,-218.964583,0.00019178,2]
[328593406,1717585847365,-218.964583,0.00019178,2]
[328593407,1717585847375,-218.964583,0.00019178,2]
[328593408,1717585847384,-218.964583,0.00019178,2]
[328593409,1717585847393,-218.964583,0.00019178,2]
[328593410,1717585847403,-218.964583,0.00019178,2]
[328593411,1717585847412,-218.964583,0.00019178,2]
[328593412,1717585847422,-218.964583,0.00019178,2]
[328593413,1717585847432,-218.964583,0.00019178,2]
[328593414,1717585847441,-218.964583,0.00019178,2]
[328593415,1717585847451,-218.964583,0.00019178,2]
[328593416,1717585847460,-218.964583,0.00019178,2]
[328593417,1717585847470,-218.964583,0.00019178,2]
[328593418,1717585847479,-218.964583,0.00019178,2]
[328593419,1717585847489,-218.964583,0.00019178,2]
[328593420,1717585847499,-218.964583,0.00019178,2]
[328593421,1717585847511,-218.964583,0.00019178,2]
[328593422,1717585847521,-218.964583,0.00019178,2]
[328593423,1717585847530,-218.964589,0.00019178,2]
[328593424,1717585847540,-589.741647,0.00019178,2]
[328593425,1717585847550,-589.741647,0.00019178,2]
[328593426,1717585847559,-589.741647,0.00019178,2]
[328593427,1717585847570,-589.741647,0.00019178,2]
[328593428,1717585847579,-589.741647,0.00019178,2]
[328593429,1717585847590,-589.741647,0.00019178,2]
[328593430,1717585847602,-589.741647,0.00019178,2]
[328593431,1717585847611,-589.741647,0.00019178,2]
[328593432,1717585847620,-589.741647,0.00019178,2]
[328593433,1717585847630,-589.741647,0.00019178,2]
[328593434,1717585847640,-589.741647,0.00019178,2]
[328593435,1717585847650,-589.741647,0.00019178,2]
[328593436,1717585847659,-589.741647,0.00019178,2]
[328593437,1717585847669,-589.741647,0.00019178,2]
[328593438,1717585847679,-589.741647,0.00019178,2]
[328593439,1717585847688,-589.741647,0.00019178,2]
[328593440,1717585847697,-589.741647,0.00019178,2]
[328593441,1717585847707,-589.741647,0.00019178,2]
[328593442,1717585847716,-151.0,0.00019178,2]
[328593443,1717585847726,-589.741647,0.00019178,2]
[328593444,1717585847735,-151.0,0.00019178,2]
[328593445,1717585847744,-589.741641,0.00019178,2]
[328593446,1717585847756,-151.0,0.00019178,2]
[328593447,1717585847765,-151.0,0.00019178,2]
[328593448,1717585847774,-151.0,0.00019178,2]
[328593449,1717585847783,-151.0,0.00019178,2]
[328593450,1717585847792,-151.0,0.00019178,2]
[328593451,1717585847801,-151.0,0.00019178,2]
[328593452,1717585847810,-151.0,0.00019178,2]
[328593453,1717585847819,-151.0,0.00019178,2]
[328593454,1717585847828,-151.0,0.00019178,2]
[328593455,1717585847837,-151.0,0.00019178,2]
[328593456,1717585847846,-159.134273,0.00019178,2]
[328593457,1717585847855,-310.648156,0.00019178,2]
[328593458,1717585847864,-310.648156,0.00019178,2]
[328593459,1717585847874,-310.648156,0.00019178,2]
[328593460,1717585847883,-310.648156,0.00019178,2]
[328593461,1717585847892,-310.648156,0.00019178,2]
[328593462,1717585847902,-310.648156,0.00019178,2]
[328593463,1717585847912,-310.648156,0.00019178,2]
[328593464,1717585847921,-310.648156,0.00019178,2]
[328593465,1717585847930,-310.648156,0.00019178,2]
[328593466,1717585847939,-310.648156,0.00019178,2]
[328593467,1717585847949,-310.648156,0.00019178,2]
[328593468,1717585847958,-310.648156,0.00019178,2]
[328593469,1717585847967,-310.648156,0.00019178,2]
[328593470,1717585847976,-310.648156,0.00019178,2]
[328593471,1717585847985,-310.648156,0.00019178,2]
[328593472,1717585847995,-310.648156,0.00019178,2]
[328593473,1717585848006,-310.648156,0.00019178,2]
[328593474,1717585848016,-310.648156,0.00019178,2]
[328593475,1717585848026,-310.648156,0.00019178,2]
[328593476,1717585848035,-310.648164,0.00019178,2]
[328593477,1717585848044,-151.0,0.00019178,2]
[328593478,1717585848053,-151.0,0.00019178,2]
[328593479,1717585848062,-340.009586,0.00019178,2]
[328593480,1717585848071,-340.009586,0.00019178,2]
[328593481,1717585848082,-340.009586,0.00019178,2]
[328593482,1717585848091,-340.009586,0.00019178,2]
[328593483,1717585848100,-340.009586,0.00019178,2]
[328593484,1717585848109,-340.009586,0.00019178,2]
[328593485,1717585848118,-340.009586,0.00019178,2]
[328593486,1717585848127,-340.009586,0.00019178,2]
[328593487,1717585848137,-340.009586,0.00019178,2]
[328593488,1717585848148,-340.009586,0.00019178,2]
[328593489,1717585848157,-340.009586,0.00019178,2]
[328593490,1717585848167,-340.009586,0.00019178,2]
[328593491,1717585848177,-340.009586,0.00019178,2]
[328593492,1717585848186,-166.623638,0.00019178,2]
[328593493,1717585848195,-169.432516,0.00019178,2]
[328593494,1717585848205,-151.0,0.00019178,2]
[328593495,1717585848215,-151.0,0.00019178,2]
[328593496,1717585848224,-151.0,0.00019178,2]
[328593497,1717585848235,-291.8804944,0.00019452,2]
[328593498,1717585848244,-297.5913327,0.00019452,2]
[328593499,1717585848256,-205.1119034,0.00019452,2]
[328593500,1717585848266,-292.2198683,0.00019616,2]
[328593501,1717585848276,-205.1119034,0.00019616,2]
[328593502,1717585848285,-153.0,0.00019616,2]
[328593503,1717585848294,-205.1119034,0.00019616,2]
[328593504,1717585848305,-350.7400887,0.00019616,2]
[328593505,1717585848314,-204.2693194,0.00019616,2]
[328593506,1717585848323,-9257.52395384,0.00019699,2]
[328593507,1717585848332,-151.0,0.00019699,2]
[328593508,1717585848341,-151.0,0.00019699,2]
[328593509,1717585848351,-1949.18250617,0.0002,10]
[328593510,1717585848360,-12837.08118609,0.0002,2]
[328593511,1717585848369,-168.44689279,0.0002,2]
[328593512,1717585848380,-1000.0,0.0002,7]
[328593513,1717585848391,-12832.39559359,0.0002,2]
[328593514,1717585848401,-270.0,0.0002,2]
[328593515,1717585848411,-1354.21950592,0.0002,2]
[328593516,1717585848421,-1454.92346942,0.0002,3]
[328593517,1717585848430,-435.0,0.0002,2]
[328593518,1717585848440,-528.67913693,0.00020188,4]
[328593519,1717585848449,-205.1119034,0.00020438,2]
[328593520,1717585848460,-205.1119034,0.00020438,2]
[328593521,1717585848470,-204.8538803,0.00020438,2]
[328593522,1717585848479,-198.352493,0.00021,2]
[328593523,1717585848488,-10066.16615043,0.00021,2]
[328593524,1717585848499,-1000.0,0.00021,9]
[328593525,1717585848509,-1689.2063603,0.00021,2]
[328593526,1717585848520,-7366.84033526,0.00021,2]
[328593527,1717585848529,-925.07294038,0.0002108,2]
[328593528,1717585848539,-263.1,0.00021115,5]
[328593529,1717585848550,-8324.0,0.000215,2]
[328593530,1717585848559,-263.1,0.00021785,5]
[328593531,1717585848569,-522.502,0.00021828,2]
[328593532,1717585848578,-218.98,0.00021828,2]
[328593533,1717585848587,-153.0,0.00021832,2]
[328593534,1717585848600,-2111.50910737,0.00021893,2]
[328593535,1717585848610,-165.00498308,0.00021915,2]
[328593536,1717585848620,-305.3780539,0.00021915,2]
[328593537,1717585848629,-260.63132323,0.00021915,2]
[328593538,1717585848639,-207.04988001,0.00021915,2]
[328593539,1717585848648,-309.88859792,0.00021915,2]
[328593540,1717585848657,-155.61598369,0.00021915,2]
[328593541,1717585848666,-198.29075646,0.00021915,2]
[328593542,1717585848676,-155.69541623,0.00021915,2]
[328593543,1717585848686,-298.79769106,0.00021915,2]
[328593544,1717585848696,-155.20812291,0.00021915,2]
[328593545,1717585848705,-859.7179351,0.00021915,2]
[328593546,1717585848715,-398.23138463,0.00021915,2]
[328593547,1717585848725,-155.0,0.00021915,2]
[328593548,1717585848734,-154.98450155,0.00021915,2]
[328593549,1717585848745,-309.9853983,0.00021915,2]
[328593550,1717585848755,-300.77720501,0.00021915,2]
[328593551,1717585848764,-155.22187407,0.00021915,2]
[328593552,1717585848774,-550.9904196,0.00021915,2]
[328593553,1717585848783,-249.69535035,0.00021915,2]
[328593554,1717585848793,-458.14168421,0.00021915,2]
[328593555,1717585848803,-184.42856408,0.00021915,2]
[328593556,1717585848812,-358.38050345,0.00021915,2]
[328593557,1717585848821,-1701.13691328,0.00021915,2]
[328593558,1717585848831,-263.08349597,0.00021915,2]
[328593559,1717585848840,-155.04648605,0.00021915,2]
[328593560,1717585848850,-658.60322718,0.00021915,2]
[328593561,1717585848859,-1746.67756538,0.00021915,2]
[328593562,1717585848869,-342.97333518,0.00021915,2]
[328593563,1717585848879,-688.02568084,0.00021915,2]
[328593564,1717585848888,-212.71187327,0.00021915,2]
[328593565,1717585848898,-381.86161396,0.00021915,2]
[328593566,1717585848907,-530.03389257,0.00021915,2]
[328593567,1717585848916,-185.47206817,0.00021915,2]
[328593568,1717585848926,-282.5402496,0.00021915,2]
[328593569,1717585848935,-319.58394525,0.00021915,2]
[328593570,1717585848944,-214.50805833,0.00021915,2]
[328593571,1717585848953,-392.32402376,0.00021915,2]
[328593572,1717585848962,-721.48966829,0.00021915,2]
[328593573,1717585848971,-156.0337044,0.00021915,2]
[328593574,1717585848981,-500.0,0.00021917,2]
[328593575,1717585848991,-500.0,0.00021917,2]
[328593576,1717585849001,-500.0,0.00021917,2]
[328593577,1717585849010,-500.0,0.00021917,2]
[328593578,1717585849020,-500.0,0.00021917,2]
[328593579,1717585849029,-1511.76,0.00021917,2]
[328593580,1717585849038,-500.0,0.00021917,2]
[328593581,1717585849048,-500.0,0.00021917,2]
[328593582,1717585849058,-500.0,0.00021917,2]
[328593583,1717585849068,-200.00722861,0.00021917,2]
[328593584,1717585849077,-500.0,0.00021917,2]
[328593585,1717585849086,-500.0,0.00021917,2]
[328593586,1717585849096,-500.0,0.00021917,2]
[328593587,1717585849105,-500.0,0.00021917,2]
[328593588,1717585849114,-500.0,0.00021917,2]
[328593589,1717585849124,-500.0,0.00021917,2]
[328593590,1717585849133,-170.37,0.00021917,2]
[328593591,1717585849143,-613.75852836,0.00021917,2]
[328593592,1717585849152,-159.77523695,0.00021917,2]
[328593593,1717585849161,-500.0,0.00021917,2]
[328593594,1717585849172,-863.99,0.00021917,2]
[328593595,1717585849181,-514.39006968,0.00021917,2]
[328593596,1717585849191,-164.34,0.00021917,2]
[328593597,1717585849200,-500.0,0.00021917,2]
[328593598,1717585849209,-500.0,0.00021917,2]
[328593599,1717585849219,-168.83,0.00021917,2]
[328593600,1717585849228,-880.03,0.00021917,2]
[328593601,1717585849238,-500.0,0.00021917,2]
[328593602,1717585849249,-500.0,0.00021917,2]
[328593603,1717585849259,-500.0,0.00021917,2]
[328593604,1717585849268,-1114.5,0.00021917,2]
[328593605,1717585849277,-500.0,0.00021917,2]
[328593606,1717585849287,-641.42385137,0.00021917,2]
[328593607,1717585849297,-500.0,0.00021917,2]
[328593608,1717585849307,-500.0,0.00021917,2]
[328593609,1717585849317,-401.24175217,0.00021917,2]
[328593610,1717585849327,-500.0,0.00021917,2]
[328593611,1717585849336,-500.0,0.00021917,2]
[328593612,1717585849345,-500.0,0.00021917,2]
[328593613,1717585849354,-500.0,0.00021917,2]
[328593614,1717585849363,-500.0,0.00021917,2]
[328593615,1717585849372,-500.0,0.00021917,2]
[328593616,1717585849382,-500.0,0.00021917,2]
[328593617,1717585849391,-534.1219594,0.00021917,2]
[328593618,1717585849401,-500.0,0.00021917,2]
[328593619,1717585849410,-500.0,0.00021917,2]
[328593620,1717585849420,-500.0,0.00021917,2]
[328593621,1717585849429,-500.0,0.00021917,2]
[328593622,1717585849438,-500.0,0.00021917,2]
[328593623,1717585849449,-500.0,0.00021917,2]
[328593624,1717585849458,-500.0,0.00021917,2]
[328593625,1717585849467,-517.1893,0.00021917,2]
[328593626,1717585849477,-1051.82,0.00021917,2]
[328593627,1717585849486,-500.0,0.00021917,2]
[328593628,1717585849496,-500.0,0.00021917,2]
[328593629,1717585849508,-500.0,0.00021917,2]
[328593630,1717585849607,-500.0,0.00021917,2]
[328593631,1717585849628,-500.0,0.00021917,2]
[328593632,1717585849637,-167.99239963,0.00021917,2]
[328593633,1717585849645,-275.65,0.00021917,2]
[328593634,1717585849655,-574.95,0.00021917,2]
[328593635,1717585849664,-595.88,0.00021917,2]
[328593636,1717585849673,-500.0,0.00021917,2]
[328593637,1717585849682,-1082.14,0.00021917,2]
[328593638,1717585849691,-1267.06,0.00021917,2]
[328593639,1717585849710,-615.45,0.00021917,2]
[328593640,1717585849719,-500.0,0.00021917,2]
[328593641,1717585849728,-500.0,0.00021917,2]
[328593642,1717585849738,-833.38,0.00021917,2]
[328593643,1717585849747,-500.0,0.00021917,2]
[328593644,1717585849758,-162.75,0.00021917,2]
[328593645,1717585849767,-500.0,0.00021917,2]
[328593646,1717585849776,-500.0,0.00021917,2]
[328593647,1717585849785,-500.0,0.00021917,2]
[328593648,1717585849795,-500.0,0.00021917,2]
[328593649,1717585849804,-397.0,0.00021917,2]
[328593650,1717585849814,-500.0,0.00021917,2]
[328593651,1717585849823,-572.27,0.00021917,2]
[328593652,1717585849832,-1017.88,0.00021917,2]
[328593653,1717585849841,-500.0,0.00021917,2]
[328593654,1717585849850,-1479.42,0.00021917,2]
[328593655,1717585849860,-500.0,0.00021917,2]
[328593656,1717585849869,-500.0,0.00021917,2]
[328593657,1717585849878,-500.0,0.00021917,2]
[328593658,1717585849887,-500.0,0.00021917,2]
[328593659,1717585849897,-1676.83,0.00021917,2]
[328593660,1717585849906,-1092.27,0.00021917,2]
[328593661,1717585849915,-502.59910192,0.00021917,2]
[328593662,1717585849924,-502.54631848,0.00021917,2]
[328593663,1717585849934,-500.70078745,0.00021917,2]
[328593664,1717585849943,-500.0,0.00021917,2]
[328593665,1717585849952,-500.0,0.00021917,2]
[328593666,1717585849961,-501.07829729,0.00021917,2]
[328593667,1717585849970,-635.63,0.00021917,2]
[328593668,1717585849979,-500.74449067,0.00021917,2]
[328593669,1717585849988,-536.1,0.00021917,2]
[328593670,1717585850000,-500.0,0.00021917,2]
[328593671,1717585850010,-500.0,0.00021917,2]
[328593672,1717585850019,-533.06217459,0.00021917,2]
[328593673,1717585850028,-500.0,0.00021917,2]
[328593674,1717585850037,-583.8260897,0.00021917,2]
[328593675,1717585850047,-500.0,0.00021917,2]
[328593676,1717585850056,-500.0,0.00021917,2]
[328593677,1717585850065,-500.0,0.00021917,2]
[328593678,1717585850074,-6206.79,0.00021917,2]
[328593679,1717585850084,-500.0,0.00021917,2]
[328593680,1717585850094,-500.0,0.00021917,2]
[328593681,1717585850103,-500.0,0.00021917,2]
[328593682,1717585850112,-505.05318586,0.00021917,2]
[328593683,1717585850121,-500.0,0.00021917,2]
[328593684,1717585850130,-500.0,0.00021917,2]
[328593685,1717585850141,-866.93,0.00021917,2]
[328593686,1717585850150,-500.0,0.00021917,2]
[328593687,1717585850159,-500.0,0.00021917,2]
[328593688,1717585850168,-500.0,0.00021917,2]
[328593689,1717585850178,-500.0,0.00021917,2]
[328593690,1717585850187,-170.55515521,0.00021917,2]
[328593691,1717585850196,-500.0,0.00021917,2]
[328593692,1717585850206,-500.0,0.00021917,2]
[328593693,1717585850215,-500.0,0.00021917,2]
[328593694,1717585850224,-500.0,0.00021917,2]
[328593695,1717585850234,-500.0,0.00021917,2]
[328593696,1717585850243,-505.54253071,0.00021917,2]
[328593697,1717585850254,-383.32522982,0.00021917,2]
[328593698,1717585850263,-527.71655032,0.00021917,2]
[328593699,1717585850271,-500.0,0.00021917,2]
[328593700,1717585850280,-500.0,0.00021917,2]
[328593701,1717585850289,-500.0,0.00021917,2]
[328593702,1717585850299,-503.14220329,0.00021917,2]
[328593703,1717585850309,-514.2,0.00021917,2]
[328593704,1717585850318,-500.0,0.00021917,2]
[328593705,1717585850327,-500.0,0.00021917,2]
[328593706,1717585850336,-500.0,0.00021917,2]
[328593707,1717585850345,-500.0,0.00021917,2]
[328593708,1717585850354,-2252.9,0.00021917,2]
[328593709,1717585850363,-507.1204056,0.00021917,2]
[328593710,1717585850373,-698.8,0.00021917,2]
[328593711,1717585850382,-500.0,0.00021917,2]
[328593712,1717585850391,-505.78913912,0.00021917,2]
[328593713,1717585850400,-500.0,0.00021917,2]
[328593714,1717585850409,-500.0,0.00021917,2]
[328593715,1717585850419,-589.15,0.00021917,2]
[328593716,1717585850428,-500.0,0.00021917,2]
[328593717,1717585850437,-1967.56,0.00021917,2]
[328593718,1717585850446,-500.0,0.00021917,2]
[328593719,1717585850455,-629.85129178,0.00021917,2]
[328593720,1717585850464,-500.0,0.00021917,2]
[328593721,1717585850473,-500.0,0.00021917,2]
[328593722,1717585850483,-500.0,0.00021917,2]
[328593723,1717585850492,-500.0,0.00021917,2]
[328593724,1717585850503,-162.87164228,0.00021917,2]
[328593725,1717585850513,-500.0,0.00021917,2]
[328593726,1717585850526,-500.0,0.00021917,2]
[328593727,1717585850535,-257.85589236,0.00021917,2]
[328593728,1717585850545,-2529.83,0.00021917,2]
[328593729,1717585850555,-500.0,0.00021917,2]
[328593730,1717585850566,-500.0,0.00021917,2]
[328593731,1717585850575,-507.25966921,0.00021917,2]
[328593732,1717585850584,-2208.26,0.00021917,2]
[328593733,1717585850596,-504.00731815,0.00021917,2]
[328593734,1717585850607,-504.10866933,0.00021917,2]
[328593735,1717585850616,-500.0,0.00021917,2]
[328593736,1717585850626,-500.0,0.00021917,2]
[328593737,1717585850635,-701.91,0.00021917,2]
[328593738,1717585850644,-899.94,0.00021917,2]
[328593739,1717585850653,-500.0,0.00021917,2]
[328593740,1717585850663,-4273.03,0.00021917,2]
[328593741,1717585850673,-501.39775306,0.00021917,2]
[328593742,1717585850683,-647.12241206,0.00021917,2]
[328593743,1717585850694,-500.0,0.00021917,2]
[328593744,1717585850703,-500.0,0.00021917,2]
[328593745,1717585850714,-427.92152622,0.00021917,2]
[328593746,1717585850723,-954.51,0.00021917,2]
[328593747,1717585850732,-1254.35,0.00021917,2]
[328593748,1717585850742,-4660.75,0.00021917,2]
[328593749,1717585850752,-298.56,0.00021917,2]
[328593750,1717585850762,-1469.3,0.00021917,2]
[328593751,1717585850771,-500.0,0.00021917,2]
[328593752,1717585850784,-503.08453009,0.00021917,2]
[328593753,1717585850798,-500.0,0.00021917,2]
[328593754,1717585850811,-500.0,0.00021917,2]
[328593755,1717585850825,-166.81930156,0.00021917,2]
[328593756,1717585850836,-744.82,0.00021917,2]
[328593757,1717585850847,-500.0,0.00021917,2]
[328593758,1717585850859,-500.0,0.00021917,2]
[328593759,1717585850871,-500.0,0.00021917,2]
[328593760,1717585850884,-500.0,0.00021917,2]
[328593761,1717585850898,-500.0,0.00021917,2]
[328593762,1717585850910,-500.0,0.00021917,2]
[328593763,1717585850923,-500.0,0.00021917,2]
[328593764,1717585850937,-175.27,0.00021917,2]
[328593765,1717585850950,-1218.57,0.00021917,2]
[328593766,1717585850961,-900.9,0.00021917,2]
[328593767,1717585850976,-2666.75,0.00021917,2]
[328593768,1717585850989,-503.3789999,0.00021917,2]
[328593769,1717585851002,-713.51,0.00021917,2]
[328593770,1717585851013,-500.0,0.00021917,2]
[328593771,1717585851025,-500.0,0.00021917,2]
[328593772,1717585851037,-500.0,0.00021917,2]
[328593773,1717585851051,-500.0,0.00021917,2]
[328593774,1717585851062,-565.5043112,0.00021918,2]
[328593775,1717585851074,-166.666666,0.00021918,2]
[328593776,1717585851084,-1000.0,0.00022,11]
[328593777,1717585851094,-236.0,0.00022,2]